bitfinex-derivatives/quotes_BTCF0:USTF0_20250905
["timestamp","ask_amount","ask_price","bid_price","bid_amount"]
[1757089345449,0.004,110640.0,110630.0,1.22151523]
[1757089346047,0.004,110640.0,110630.0,0.76184915]
[1757089346248,0.004,110640.0,110630.0,1.22151523]
[1757089346448,0.02694,110640.0,110630.0,0.97151523]
[1757089346948,0.004,110640.0,110630.0,0.97151523]
[1757089347650,0.004,110640.0,110630.0,0.89030398]
[1757089348143,0.02694,110640.0,110630.0,0.89030398]
[1757089348544,0.0398,110640.0,110630.0,0.52950398]
[1757089349450,0.0398,110640.0,110630.0,0.51586398]
[1757089350148,0.87608,110640.0,110630.0,0.52950398]
[1757089350657,0.87608,110640.0,110630.0,0.51586398]
[1757089351352,0.02694,110640.0,110630.0,0.52950398]
[1757089351552,0.86318,110640.0,110630.0,0.89030398]
[1757089351953,0.02694,110640.0,110630.0,0.89030398]
[1757089352159,0.876,110640.0,110630.0,0.89030398]
[1757089352362,0.876,110640.0,110630.0,0.52950398]
[1757089354260,0.004,110640.0,110630.0,0.89030398]
[1757089354468,0.8404,110640.0,110630.0,1.14030398]
[1757089355766,0.004,110640.0,110630.0,1.14030398]
[1757089355965,0.004,110640.0,110630.0,1.23068948]
[1757089356173,0.65264,110640.0,110630.0,1.23068948]
[1757089356364,0.65264,110640.0,110630.0,1.14030398]
[1757089357466,0.004,110640.0,110630.0,1.23068948]
[1757089358067,0.004,110640.0,110630.0,1.24068948]
[1757089359262,0.004,110640.0,110630.0,0.90030398]
[1757089360369,0.004,110640.0,110630.0,0.99068948]
[1757089361462,0.02694,110640.0,110630.0,0.90030398]
[1757089362575,0.0398,110640.0,110630.0,0.0798379]
[1757089362770,0.2898,110640.0,110630.0,0.0798379]
[1757089363161,0.2898,110640.0,110630.0,0.53950398]
[1757089363567,0.27694,110640.0,110630.0,0.53950398]
[1757089364776,0.2898,110640.0,110630.0,0.53950398]
[1757089364965,0.2898,110640.0,110630.0,0.0798379]
[1757089365168,0.2898,110640.0,110630.0,0.53950398]
[1757089367477,0.2898,110640.0,110630.0,0.54334248]
[1757089367972,0.2898,110640.0,110630.0,0.52970248]
[1757089368179,0.2898,110640.0,110630.0,0.0661979]
[1757089368575,0.67188003,110640.0,110630.0,0.51159807]
[1757089369983,0.67188003,110640.0,110630.0,0.04809349]
[1757089370171,0.67188003,110640.0,110630.0,0.51159807]
[1757089370371,0.67188003,110640.0,110630.0,0.02485349]
[1757089370578,0.67188003,110640.0,110630.0,0.01485349]
[1757089373082,0.67188003,110640.0,110630.0,0.03646349]
[1757089373580,1.50788003,110640.0,110630.0,0.49996807]
[1757089373882,0.88422003,110640.0,110630.0,0.51285807]
[1757089374180,0.88422003,110640.0,110630.0,0.87365807]
[1757089375581,0.88426003,110640.0,110630.0,0.87365807]
[1757089376279,0.84004,110640.0,110630.0,1.12365807]
[1757089376486,0.004,110640.0,110630.0,1.65202192]
[1757089376687,0.004,110640.0,110630.0,1.76102546]
[1757089376982,0.004,110640.0,110630.0,1.29752088]
[1757089377382,0.004,110640.0,110630.0,1.69616619]
[1757089377583,0.004,110640.0,110630.0,1.84240297]
[1757089377782,0.83614,110650.0,110640.0,0.0345]
[1757089377981,0.83604,110650.0,110640.0,1.38733469]
[1757089379384,0.85925,110650.0,110640.0,1.38733469]
[1757089379586,0.83604,110650.0,110640.0,1.38733469]
[1757089379786,0.83904,110650.0,110640.0,1.38833469]
[1757089380587,0.84004,110650.0,110640.0,0.92583011]
[1757089380788,0.004,110650.0,110640.0,1.47971189]
[1757089381089,0.0001,110660.0,110640.0,1.72971189]
[1757089381289,0.80696,110660.0,110650.0,0.94917368]
[1757089381478,0.0210138,110670.0,110660.0,0.0345]
[1757089381788,0.8571538,110670.0,110660.0,0.85880458]
[1757089382087,0.8571538,110670.0,110660.0,0.86774007]
[1757089382690,0.8803638,110670.0,110660.0,0.85880458]
[1757089383487,0.8940338,110670.0,110660.0,0.3953]
[1757089383686,0.8940338,110670.0,110660.0,0.48511458]
[1757089383884,1.5048338,110670.0,110660.0,0.02161]
[1757089384286,1.1440338,110670.0,110660.0,0.02161]
[1757089384484,1.1440338,110670.0,110660.0,0.48511458]
[1757089384980,1.5048338,110670.0,110660.0,0.48511458]
[1757089385184,1.1440338,110670.0,110660.0,0.48511458]
[1757089385995,1.1450338,110670.0,110660.0,0.48611458]
[1757089386380,1.1490338,110670.0,110660.0,0.48711458]
[1757089386585,1.5098338,110670.0,110660.0,0.48711458]
[1757089387192,1.5058338,110670.0,110660.0,0.48611458]
[1757089387385,1.5068338,110670.0,110660.0,0.48711458]
[1757089387585,1.5068338,110670.0,110660.0,0.02361]
[1757089388091,1.52792519,110670.0,110660.0,0.002]
[1757089388291,1.5068338,110670.0,110660.0,0.002]
[1757089388595,0.6695938,110670.0,110660.0,0.49900458]
[1757089388892,1.2585938,110670.0,110660.0,0.50000458]
[1757089389092,0.8977938,110670.0,110660.0,0.50000458]
[1757089389494,0.02521,110670.0,110660.0,0.50000458]
[1757089389693,0.002,110670.0,110660.0,1.11080458]
[1757089389991,0.86353,110670.0,110660.0,1.11080458]
[1757089390187,0.86353,110670.0,110660.0,0.86080458]
[1757089390394,0.8772,110670.0,110660.0,0.50000458]
[1757089390887,0.8772,110670.0,110660.0,0.86080458]
[1757089391088,0.86353,110670.0,110660.0,0.86080458]
[1757089391485,0.86353,110670.0,110660.0,0.50000458]
[1757089391683,0.8772,110670.0,110660.0,0.48711458]
[1757089392089,0.8772,110670.0,110660.0,0.50000458]
[1757089392791,0.8772,110670.0,110660.0,0.48711458]
[1757089392997,1.238,110670.0,110660.0,0.002]
[1757089393602,1.238,110670.0,110660.0,0.02361]
[1757089393897,2.21685453,110670.0,110660.0,0.002]
[1757089394096,1.75334995,110670.0,110660.0,0.002]
[1757089395095,1.75334995,110670.0,110650.0,0.0002]
[1757089395292,0.39689,110660.0,110650.0,0.0001]
[1757089395594,0.03609,110650.0,110640.0,0.57067549]
[1757089395800,0.87477,110650.0,110640.0,0.58047549]
[1757089396296,0.87477,110650.0,110640.0,0.11697091]
[1757089396807,0.87477,110650.0,110630.0,0.95207746]
[1757089396808,0.03609,110640.0,110630.0,0.95917174]
[1757089397001,0.03609,110640.0,110630.0,0.95897174]
[1757089397295,0.02286,110640.0,110630.0,0.96897174]
[1757089397499,0.86142,110640.0,110630.0,0.96897174]
[1757089397692,0.86142,110640.0,110630.0,0.60817174]
[1757089397893,0.86142,110640.0,110630.0,0.96897174]
[1757089398193,0.02396,110650.0,110640.0,0.0359]
[1757089398399,0.83932,110650.0,110640.0,0.56436865]
[1757089398596,0.83932,110650.0,110640.0,0.81436865]
[1757089399002,0.02386,110650.0,110640.0,0.81436865]
[1757089399302,0.83944,110650.0,110640.0,1.63867323]
[1757089399897,0.83944,110650.0,110640.0,1.17516865]
[1757089400195,0.84144,110650.0,110640.0,1.11120458]
[1757089400390,0.84044,110650.0,110640.0,1.11120458]
[1757089401403,0.84144,110650.0,110640.0,1.17717776]
[1757089401596,0.003,110650.0,110640.0,1.20258188]
[1757089401798,0.84112,110650.0,110640.0,1.66608646]
[1757089401999,0.003,110650.0,110640.0,1.66608646]
[1757089402193,0.84104,110650.0,110640.0,1.66608646]
[1757089403099,0.003,110650.0,110640.0,1.67608646]
[1757089403299,0.84108,110650.0,110640.0,1.67608646]
[1757089403499,0.84108,110650.0,110640.0,1.75729771]
[1757089405608,0.84108,110650.0,110640.0,1.66692041]
[1757089406106,0.84072,110650.0,110640.0,1.66692041]
[1757089406507,0.003,110650.0,110640.0,1.66692041]
[1757089407006,0.79876,110650.0,110640.0,1.66692041]
[1757089407207,0.79876,110650.0,110640.0,1.75729771]
[1757089411914,0.79876,110650.0,110640.0,2.59389771]
[1757089411915,0.003,110650.0,110640.0,2.59389771]
[1757089412108,0.0001,110660.0,110650.0,0.1262692]
[1757089412315,0.83674,110670.0,110660.0,0.0359]
[1757089412613,0.83664,110670.0,110660.0,0.49940458]
[1757089413113,0.83664,110670.0,110660.0,0.86020458]
[1757089413408,1.76892,110680.0,110670.0,0.0359]
[1757089413613,2.60546,110680.0,110670.0,0.49940458]
[1757089413914,2.60522,110680.0,110670.0,0.49940458]
[1757089414214,1.76862,110680.0,110670.0,0.49940458]
[1757089414516,2.58204,110680.0,110670.0,0.86020458]
[1757089415108,2.58304,110680.0,110670.0,0.86120458]
[1757089415416,0.8372,110680.0,110670.0,0.87120458]
[1757089417016,0.001,110680.0,110670.0,0.96155738]
[1757089417214,0.83704,110680.0,110670.0,0.87220458]
[1757089418016,0.001,110680.0,110670.0,0.88135988]
[1757089419211,0.001,110680.0,110670.0,0.97171268]
[1757089419415,0.001,110680.0,110670.0,1.79521726]
[1757089419812,0.001,110680.0,110670.0,2.04521726]
[1757089420120,0.001,110680.0,110670.0,2.94621465]
[1757089420313,0.001,110680.0,110670.0,2.04521726]
[1757089420523,0.001,110680.0,110670.0,1.55639727]
[1757089421012,0.001,110680.0,110670.0,1.64675007]
[1757089421211,0.001,110680.0,110670.0,1.55639727]
[1757089422723,0.001,110680.0,110670.0,1.19639727]
[1757089423117,0.001,110680.0,110670.0,1.28675007]
[1757089423322,0.001,110680.0,110670.0,1.22171268]
[1757089423621,0.001,110680.0,110670.0,1.19639727]
[1757089424417,0.001,110680.0,110670.0,0.6678553]
[1757089424719,0.02386,110680.0,110670.0,0.88135988]
[1757089424921,0.001,110680.0,110670.0,0.97171268]
[1757089425122,0.001,110680.0,110670.0,1.43521726]
[1757089425320,0.001,110680.0,110670.0,1.75521726]
[1757089425519,0.001,110680.0,110670.0,2.00425043]
[1757089426021,0.39507955,110720.0,110680.0,0.03422]
[1757089426324,0.06495443,110720.0,110710.0,0.39502]
[1757089426515,0.04217443,110720.0,110710.0,1.14568996]
[1757089426718,0.04217443,110720.0,110710.0,1.24491676]
[1757089426922,0.02112488,110720.0,110710.0,1.99363982]
[1757089427522,0.02312488,110720.0,110710.0,1.80786232]
[1757089428025,0.02312488,110720.0,110710.0,1.3452486]
[1757089428225,0.002,110720.0,110710.0,1.2549284]
[1757089428424,0.02311655,110720.0,110710.0,1.2549284]
[1757089428923,0.02303655,110720.0,110710.0,1.2549284]
[1757089429124,0.02503655,110720.0,110710.0,1.2549284]
[1757089429322,0.00392,110720.0,110710.0,1.3452485]
[1757089429622,0.00392,110720.0,110710.0,1.34222614]
[1757089429819,0.00392,110720.0,110710.0,1.25190604]
[1757089430617,0.007,110720.0,110710.0,1.34322614]
[1757089430822,0.006,110720.0,110710.0,1.34522614]
[1757089431027,0.006,110720.0,110710.0,1.25490604]
[1757089431318,0.006,110720.0,110710.0,1.34522614]
[1757089431524,0.001,110720.0,110710.0,1.25390604]
[1757089432426,0.001,110720.0,110710.0,1.34422614]
[1757089432825,0.001,110720.0,110710.0,1.34622614]
[1757089433029,0.001,110720.0,110710.0,1.25590604]
[1757089433525,0.02278,110730.0,110720.0,0.03422]
[1757089433724,0.04387477,110730.0,110720.0,0.85461136]
[1757089435027,0.04487477,110730.0,110720.0,0.85561136]
[1757089436724,0.04587477,110730.0,110720.0,0.85761136]
[1757089438528,0.02309477,110730.0,110720.0,0.85761136]
[1757089438727,0.04587477,110730.0,110720.0,0.85761136]
[1757089439025,0.02309477,110730.0,110720.0,0.85761136]
[1757089439722,0.04587477,110730.0,110720.0,0.85761136]
[1757089439918,0.02478,110730.0,110720.0,0.92264875]
[1757089440723,0.02478,110730.0,110720.0,0.9959361]
[1757089441633,0.02478,110730.0,110720.0,0.94089871]
[1757089443839,0.002,110730.0,110720.0,0.94089871]
[1757089444527,0.002,110730.0,110720.0,1.03121081]
[1757089444937,0.002,110730.0,110720.0,1.24089871]
[1757089445230,0.02478,110730.0,110720.0,0.96089871]
[1757089449533,0.02478,110730.0,110720.0,0.87149387]
[1757089449728,0.27478,110730.0,110720.0,0.87149387]
[1757089449937,0.28821,110730.0,110720.0,0.79820652]
[1757089450242,0.28821,110730.0,110720.0,0.78500652]
[1757089450443,1.12397,110730.0,110720.0,0.78500652]
[1757089450743,1.12397,110730.0,110720.0,0.79820652]
[1757089451235,0.28821,110730.0,110720.0,0.79820652]
[1757089451541,0.002,110730.0,110720.0,0.88851862]
[1757089451737,0.83756,110730.0,110720.0,0.88851862]
[1757089451939,0.002,110730.0,110720.0,0.88851862]
[1757089452140,0.002,110730.0,110720.0,1.25870514]
[1757089452442,0.67098,110730.0,110720.0,0.79820652]
[1757089453047,0.002,110730.0,110720.0,0.88851862]
[1757089453238,0.86082,110730.0,110720.0,0.88851862]
[1757089454042,0.86082,110730.0,110720.0,0.95980483]
[1757089455442,0.002,110730.0,110720.0,0.95980483]
[1757089455739,0.02505,110730.0,110720.0,0.95980483]
[1757089455947,0.02505,110730.0,110720.0,0.86949273]
[1757089457139,0.002,110730.0,110720.0,1.32999135]
[1757089457840,0.002,110730.0,110720.0,0.95980483]
[1757089458045,0.02505,110730.0,110720.0,0.86949273]
[1757089460341,0.28865,110730.0,110720.0,0.85629273]
[1757089462348,0.28865,110730.0,110720.0,0.86912273]
[1757089463751,0.28865,110730.0,110720.0,1.02912273]
[1757089465544,0.27505,110730.0,110720.0,1.02912273]
[1757089465751,1.11061,110730.0,110720.0,1.02912273]
[1757089465948,0.02505,110730.0,110720.0,1.02912273]
[1757089466149,0.86061,110730.0,110720.0,1.02912273]
[1757089467848,0.02505,110730.0,110720.0,1.02912273]
[1757089468054,0.83756,110730.0,110720.0,1.02912273]
[1757089468448,0.83756,110730.0,110720.0,1.09416012]
[1757089470644,0.87421,110730.0,110720.0,0.7239736]
[1757089470847,0.86061,110730.0,110720.0,1.09416012]
[1757089471446,0.83756,110730.0,110720.0,1.09416012]
[1757089474759,0.86061,110730.0,110720.0,0.7239736]
[1757089474954,0.87421,110730.0,110720.0,1.09416012]
[1757089475354,0.86061,110730.0,110720.0,1.09416012]
[1757089475554,0.02505,110730.0,110720.0,1.18447222]
[1757089475760,0.86061,110730.0,110720.0,1.18447222]
[1757089476163,0.02505,110730.0,110720.0,1.18447222]
[1757089476362,0.83756,110730.0,110720.0,1.18447222]
[1757089476759,0.002,110730.0,110720.0,1.18447222]
[1757089476959,0.83756,110730.0,110720.0,1.18447222]
[1757089479265,0.83756,110730.0,110720.0,1.19188222]
[1757089479661,0.002,110730.0,110720.0,1.19188222]
[1757089479867,0.002,110730.0,110720.0,1.56206874]
[1757089480168,0.83752,110730.0,110720.0,1.56206874]
[1757089480359,0.2449,110750.0,110730.0,0.0903039]
[1757089480558,0.02116681,110750.0,110740.0,0.76652652]
[1757089480766,0.0001,110750.0,110740.0,0.77652652]
[1757089482166,0.02315,110750.0,110740.0,0.77752652]
[1757089482366,0.02615,110750.0,110740.0,0.77752652]
[1757089482661,0.02615,110750.0,110740.0,0.40734]
[1757089482861,0.02615,110750.0,110740.0,0.77752652]
[1757089483057,0.02315,110750.0,110740.0,0.77652652]
[1757089483263,0.02715,110750.0,110740.0,0.77752652]
[1757089483565,0.0041,110750.0,110740.0,0.77752652]
[1757089483966,0.02715,110750.0,110740.0,0.77752652]
[1757089484363,0.02515,110750.0,110740.0,0.77752652]
[1757089484569,0.02615,110750.0,110740.0,0.86882242]
[1757089484761,0.0031,110750.0,110740.0,0.86882242]
[1757089485254,0.0031,110750.0,110740.0,2.08355074]
[1757089485459,0.0031,110750.0,110740.0,2.14858175]
[1757089485655,0.0031,110750.0,110740.0,2.39858175]
[1757089486458,0.0001,110770.0,110760.0,0.86550264]
[1757089486662,0.83544,110780.0,110770.0,0.03485]
[1757089486970,0.85657056,110780.0,110770.0,0.76583652]
[1757089487871,0.87820056,110780.0,110770.0,0.76583652]
[1757089489071,0.87812056,110780.0,110770.0,0.76583652]
[1757089490569,0.88212056,110780.0,110770.0,0.76683652]
[1757089490775,0.88209635,110780.0,110770.0,0.76683652]
[1757089491162,0.02510635,110780.0,110770.0,0.7947951]
[1757089491465,0.04873635,110780.0,110770.0,1.25539762]
[1757089491668,0.02710635,110780.0,110770.0,1.25539762]
[1757089492173,0.02710635,110780.0,110770.0,0.51588008]
[1757089492471,0.006,110780.0,110770.0,1.25539762]
[1757089494768,0.006,110780.0,110770.0,1.62515639]
[1757089495169,0.002,110780.0,110770.0,1.62415639]
[1757089495370,0.003,110780.0,110770.0,1.62515639]
[1757089496881,0.003,110780.0,110770.0,1.25539762]
[1757089497079,0.003,110780.0,110770.0,1.62515639]
[1757089497383,0.003,110780.0,110770.0,1.25539762]
[1757089497878,0.003,110780.0,110770.0,1.62515639]
[1757089499784,0.003,110780.0,110770.0,1.25539762]
[1757089501087,0.003,110780.0,110770.0,1.26278762]
[1757089503586,0.02463,110780.0,110770.0,1.26278762]
[1757089503891,0.003,110780.0,110770.0,1.26278762]
[1757089504886,0.003,110780.0,110770.0,1.63254639]
[1757089506787,0.003,110780.0,110770.0,1.88254639]
[1757089506987,0.003,110780.0,110770.0,1.26278762]
[1757089507492,0.003,110780.0,110770.0,1.17251612]
[1757089507687,0.003,110780.0,110770.0,1.39251612]
[1757089508788,0.003,110780.0,110770.0,1.48278762]
[1757089509089,0.003,110780.0,110770.0,1.39251612]
[1757089509090,0.02414131,110780.0,110770.0,1.39251612]
[1757089510888,0.003,110780.0,110770.0,1.39251612]
[1757089511581,0.003,110780.0,110770.0,1.47372737]
[1757089511785,0.003,110780.0,110770.0,1.25372737]
[1757089512687,0.003,110780.0,110770.0,1.54372737]
[1757089513193,0.003,110780.0,110770.0,1.25372737]
[1757089515091,0.003,110780.0,110770.0,1.34399887]
[1757089515285,0.003,110780.0,110770.0,2.45848614]
[1757089515482,0.003,110780.0,110770.0,2.08872737]
[1757089515685,0.003,110780.0,110770.0,2.45848614]
[1757089515995,0.003,110780.0,110770.0,2.54875734]
[1757089516185,0.003,110780.0,110770.0,1.25372737]
[1757089516386,0.003,110780.0,110770.0,1.31854404]
[1757089516687,0.003,110780.0,110770.0,1.69736276]
[1757089516891,0.83506,110790.0,110780.0,0.01272]
[1757089517092,0.0001,110800.0,110790.0,0.125865]
[1757089517397,0.0001,110810.0,110800.0,0.1258568]
[1757089517690,0.85575723,110820.0,110810.0,0.03561]
[1757089517882,0.85565723,110820.0,110810.0,0.40538713]
[1757089518086,0.87846723,110820.0,110810.0,0.40538713]
[1757089518690,0.02069723,110820.0,110810.0,1.14490467]
[1757089518882,0.85565723,110820.0,110810.0,1.2172158]
[1757089519285,0.02069723,110820.0,110810.0,1.2172158]
[1757089520092,0.02569723,110820.0,110810.0,1.2182158]
[1757089521298,0.03069723,110820.0,110810.0,1.2192158]
[1757089521487,0.03069723,110820.0,110810.0,1.21023867]
[1757089524900,0.31633723,110820.0,110810.0,0.8277599]
[1757089525106,0.686096,110820.0,110810.0,0.4669599]
[1757089525289,0.31633723,110820.0,110810.0,0.4669599]
[1757089525494,0.686096,110820.0,110810.0,0.40203877]
[1757089525893,0.31633723,110820.0,110810.0,0.40203877]
[1757089527500,0.31633723,110820.0,110810.0,0.03228]
[1757089527700,0.31633723,110820.0,110810.0,0.40203877]
[1757089529497,0.30350723,110820.0,110810.0,0.78451754]
[1757089529693,0.88826723,110820.0,110810.0,0.78451754]
[1757089529998,0.88826723,110820.0,110810.0,1.14531754]
[1757089530795,0.88826723,110820.0,110810.0,1.16531754]
[1757089531996,0.90109723,110820.0,110810.0,0.78283877]
[1757089533405,0.90109723,110820.0,110810.0,0.41308]
[1757089533698,0.90109723,110820.0,110810.0,0.78283877]
[1757089534302,0.90105723,110820.0,110810.0,0.79555877]
[1757089534501,0.90105723,110820.0,110810.0,1.16531754]
[1757089534691,0.0001,110830.0,110820.0,0.01272]
[1757089534886,0.83468,110830.0,110820.0,1.78397582]
[1757089535103,0.83468,110830.0,110820.0,1.69374512]
[1757089536388,0.84068,110830.0,110820.0,1.69474512]
[1757089537696,0.83468,110830.0,110820.0,1.69374512]
[1757089537901,0.83868,110830.0,110820.0,1.69474512]
[1757089538401,0.84368,110830.0,110820.0,1.69574512]
[1757089539504,0.84068,110830.0,110820.0,1.69574512]
[1757089540400,0.89745759,110830.0,110820.0,0.57374881]
[1757089540590,0.89745759,110830.0,110820.0,0.55981758]
[1757089540591,1.87801636,110830.0,110820.0,0.55981758]
[1757089540995,1.87801636,110830.0,110820.0,0.172]
[1757089541700,1.87801636,110830.0,110820.0,0.002]
[1757089543404,1.97038887,110830.0,110820.0,0.002]
[1757089543599,1.97038887,110830.0,110810.0,0.00739]
[1757089543807,0.85857128,110820.0,110810.0,0.00739]
[1757089544104,0.41757759,110820.0,110810.0,0.00739]
[1757089544304,1.25241759,110820.0,110810.0,0.00739]
[1757089544599,0.41757759,110820.0,110810.0,0.00739]
[1757089544808,1.25245759,110820.0,110810.0,0.03028]
[1757089545105,1.25245759,110820.0,110810.0,0.00739]
[1757089545804,1.25245759,110820.0,110810.0,0.03028]
[1757089546001,1.25233759,110820.0,110810.0,0.49241128]
[1757089546601,1.25333759,110820.0,110810.0,0.49241128]
[1757089546802,1.25333759,110820.0,110810.0,0.00739]
[1757089547305,1.25533759,110820.0,110810.0,0.00739]
[1757089547607,1.2342,110820.0,110810.0,0.00739]
[1757089547807,1.25535033,110820.0,110810.0,0.00739]
[1757089548408,1.25535033,110820.0,110810.0,0.01662]
[1757089549009,1.25535033,110820.0,110810.0,0.03987]
[1757089550409,1.25535033,110820.0,110810.0,0.01662]
[1757089552214,1.25535033,110820.0,110810.0,0.03987]
[1757089553410,0.42059033,110820.0,110810.0,0.03987]
[1757089553610,1.25531033,110820.0,110810.0,0.03987]
[1757089553813,1.25531033,110820.0,110810.0,0.51220224]
[1757089554209,1.25531033,110820.0,110810.0,0.03987]
[1757089554809,1.25531033,110820.0,110810.0,0.01662]
[1757089555210,1.25530687,110820.0,110810.0,0.01662]
[1757089557518,1.50000687,110820.0,110810.0,0.01662]
[1757089558920,0.66528687,110820.0,110810.0,0.03987]
[1757089559110,1.50200687,110820.0,110810.0,0.03987]
[1757089559313,1.50200687,110820.0,110810.0,0.01662]
[1757089559724,1.50200687,110820.0,110810.0,0.03987]
[1757089560324,1.50200687,110820.0,110810.0,0.01662]
[1757089560624,0.29165687,110820.0,110810.0,0.51220224]
[1757089560819,0.27051,110820.0,110810.0,1.12300224]
[1757089561221,1.11275,110820.0,110810.0,1.12300224]
[1757089561425,0.27051,110820.0,110810.0,1.12300224]
[1757089561621,1.11275,110820.0,110810.0,1.12300224]
[1757089563523,0.86805,110820.0,110810.0,1.03360209]
[1757089564124,0.02581,110820.0,110810.0,1.40313418]
[1757089564327,0.003,110820.0,110810.0,1.49337298]
[1757089564626,0.84452,110820.0,110810.0,1.55818965]
[1757089565131,0.003,110820.0,110810.0,1.56818965]
[1757089567320,0.2448,110830.0,110820.0,0.0902307]
[1757089567527,0.2447,110830.0,110820.0,1.22674488]
[1757089567730,0.44882277,110840.0,110830.0,0.1268725]
[1757089568026,0.44872277,110840.0,110830.0,0.86720459]
[1757089568226,0.44872277,110840.0,110830.0,0.77698209]
[1757089568730,0.47126277,110840.0,110830.0,0.77698209]
[1757089570225,0.47126277,110840.0,110830.0,0.78437209]
[1757089570431,0.47126277,110840.0,110830.0,0.79359006]
[1757089570728,0.47426277,110840.0,110830.0,0.79459006]
[1757089571132,0.47426277,110840.0,110830.0,0.80382006]
[1757089571629,0.47426277,110840.0,110830.0,0.79460209]
[1757089572824,0.47626277,110840.0,110830.0,0.79460209]
[1757089574633,0.47626277,110840.0,110830.0,0.8034266]
[1757089576835,0.47626277,110840.0,110830.0,0.8936491]
[1757089577435,0.47626277,110840.0,110830.0,0.8034266]
[1757089577635,0.47626277,110840.0,110830.0,0.8936491]
[1757089577825,0.45372277,110840.0,110830.0,0.8936491]
[1757089578432,0.02584277,110840.0,110830.0,0.8936491]
[1757089579036,0.04817277,110840.0,110830.0,0.8936491]
[1757089581139,0.02584277,110840.0,110830.0,0.8936491]
[1757089581343,0.005,110840.0,110830.0,1.26318119]
[1757089581540,0.005,110840.0,110830.0,0.8936491]
[1757089582242,0.02733,110840.0,110830.0,0.8936491]
[1757089583743,0.02733,110840.0,110830.0,1.0936491]
[1757089583945,0.02733,110840.0,110830.0,1.11168224]
[1757089584743,0.005,110840.0,110830.0,1.11168224]
[1757089585143,0.005,110840.0,110830.0,1.48121433]
[1757089586643,0.005,110840.0,110830.0,1.11168224]
[1757089587738,0.005,110840.0,110830.0,0.91168224]
[1757089587938,0.02733,110840.0,110830.0,0.82145974]
[1757089588153,0.29124,110840.0,110830.0,0.79460209]
[1757089588352,1.14915307,110840.0,110830.0,0.86854596]
[1757089588643,1.14915307,110840.0,110830.0,0.85941876]
[1757089590039,1.14615307,110840.0,110830.0,0.79460209]
[1757089590440,0.89415307,110840.0,110830.0,0.84607406]
[1757089593050,0.05695307,110840.0,110830.0,0.85925406]
[1757089593347,0.89387307,110840.0,110830.0,0.85925406]
[1757089593850,0.04304307,110840.0,110830.0,0.85925406]
[1757089594042,0.87996307,110840.0,110830.0,0.94947666]
[1757089594243,0.87996307,110840.0,110830.0,0.85925406]
[1757089594447,0.87996307,110840.0,110830.0,0.85923373]
[1757089595145,0.87996307,110840.0,110830.0,0.94945633]
[1757089595651,0.85925,110840.0,110830.0,0.85923373]
[1757089600751,0.87316,110840.0,110830.0,0.85923373]
[1757089601455,0.85925,110840.0,110830.0,0.85923373]
[1757089604250,0.85861,110840.0,110830.0,0.85923373]
[1757089604552,0.85849,110840.0,110830.0,0.85923373]
[1757089605150,0.26738,110850.0,110840.0,0.03575]
[1757089605457,0.2447,110850.0,110840.0,1.35068022]
[1757089605657,0.2447,110850.0,110840.0,1.60068022]
[1757089607045,0.2457,110850.0,110840.0,1.60068022]
[1757089607356,0.2467,110850.0,110840.0,1.60068022]
[1757089607958,0.002,110850.0,110840.0,1.60068022]
[1757089609055,0.002,110850.0,110840.0,1.51785582]
[1757089609254,0.002,110850.0,110840.0,1.60807022]
[1757089612157,0.7826983,110860.0,110850.0,0.03575]
[1757089612358,0.7825983,110860.0,110850.0,1.23582038]
[1757089612957,0.7825983,110860.0,110850.0,1.30885583]
[1757089613253,0.7825983,110860.0,110850.0,1.21864963]
[1757089613760,0.7825983,110860.0,110850.0,1.21964963]
[1757089613947,0.76132,110860.0,110850.0,1.28450127]
[1757089614151,0.02268,110870.0,110860.0,0.03575]
[1757089614357,0.02258,110870.0,110860.0,0.76608209]
[1757089615460,0.02258,110870.0,110860.0,1.13493108]
[1757089615666,0.02258,110870.0,110860.0,1.14413793]
[1757089615959,0.02258,110870.0,110860.0,1.50412162]
[1757089616861,0.02358,110870.0,110860.0,1.51321543]
[1757089617853,0.02358,110870.0,110860.0,1.50412162]
[1757089618155,0.02358,110870.0,110860.0,1.13493108]
[1757089619058,0.03626,110870.0,110860.0,0.76092108]
[1757089619352,0.39706,110870.0,110860.0,0.76092108]
[1757089619662,0.39706,110870.0,110860.0,0.77413108]
[1757089619964,0.03626,110870.0,110860.0,0.77413108]
[1757089621265,0.02358,110870.0,110860.0,0.77413108]
[1757089621665,0.02358,110870.0,110860.0,0.78336108]
[1757089623762,0.86226,110870.0,110860.0,1.14416108]
[1757089623961,0.86206,110870.0,110860.0,1.51335162]
[1757089624653,0.86206,110870.0,110860.0,0.04498]
[1757089624859,0.86206,110870.0,110860.0,0.78336108]
[1757089625968,0.86206,110870.0,110860.0,0.79075108]
[1757089626167,0.86206,110870.0,110860.0,1.15155108]
[1757089626567,0.87474,110870.0,110860.0,1.15155108]
[1757089626766,0.86206,110870.0,110860.0,1.15155108]
[1757089633967,0.86206,110870.0,110860.0,1.21640272]
[1757089634676,0.88267587,110870.0,110860.0,1.21640272]
[1757089635071,1.25615587,110870.0,110860.0,0.79075108]
[1757089635268,1.87534641,110870.0,110860.0,0.01662]
[1757089635471,2.26628611,110870.0,110860.0,0.01662]
[1757089635868,1.89709557,110870.0,110860.0,0.01662]
[1757089636063,1.52790503,110870.0,110860.0,0.01662]
[1757089636374,1.89709557,110870.0,110860.0,0.01662]
[1757089638281,1.89709557,110870.0,110860.0,0.0078721]
[1757089638576,1.89709557,110870.0,110860.0,0.00739]
[1757089640372,2.26628611,110870.0,110860.0,0.00739]
[1757089640583,0.03443,110850.0,110840.0,0.01823984]
[1757089640777,1.60162054,110850.0,110840.0,0.42879038]
[1757089641077,1.61066735,110850.0,110840.0,0.42879038]
[1757089641670,1.61066735,110850.0,110840.0,0.05959984]
[1757089641876,1.61066735,110850.0,110840.0,0.42879038]
[1757089642277,1.24147681,110850.0,110840.0,0.42879038]
[1757089642478,1.61066735,110850.0,110840.0,0.42879038]
[1757089642980,1.61066735,110850.0,110840.0,0.43079038]
[1757089643379,1.61166735,110850.0,110840.0,0.43379038]
[1757089643573,0.64093,110850.0,110840.0,0.43379038]
[1757089643774,1.47949,110850.0,110840.0,0.81575092]
[1757089644479,1.11881,110850.0,110840.0,0.81575092]
[1757089645982,1.11881,110850.0,110840.0,0.07736984]